bitfinex/quotes_SOLUSD_20241016
["timestamp","ask_amount","ask_price","bid_price","bid_amount"]
[1729118076605,0.6312878,154.85,154.84,31.60668724]
[1729118077813,0.6312878,154.85,154.84,31.70668724]
[1729118082600,0.6312878,154.85,154.82,20.0]
[1729118082812,0.6312878,154.85,154.84,20.0]
[1729118086005,0.6312878,154.85,154.84,70.36018133]
[1729118092025,0.6312878,154.85,154.84,70.46018133]
[1729118101914,28.1258,154.95,154.88,0.1]
[1729118102146,28.1258,154.95,154.89,11.60668724]
[1729118103631,28.1258,154.95,154.89,11.70668724]
[1729118103924,27.6258,154.95,154.89,11.60668724]
[1729118104328,27.6258,154.95,154.89,11.70668724]
[1729118104504,27.1258,154.95,154.89,11.70668724]
[1729118104709,20.672,154.95,154.89,11.70668724]
[1729118104924,20.172,154.95,154.89,11.70668724]
[1729118105117,19.672,154.95,154.89,11.70668724]
[1729118105729,19.172,154.95,154.89,11.70668724]
[1729118105922,18.672,154.95,154.89,11.70668724]
[1729118106326,25.1257,154.95,154.89,11.70668724]
[1729118107311,25.1257,154.95,154.9,20.0]
[1729118107507,18.672,154.95,154.9,20.0]
[1729118109030,18.672,154.95,154.9,20.1]
[1729118110211,18.672,154.95,154.91,11.60668724]
[1729118111523,6.4535,154.96,154.91,11.60668724]
[1729118111728,6.4519,155.0,154.93,11.70668724]
[1729118111938,6.4519,155.0,154.94,1.29038869]
[1729118112319,7.0824878,155.01,154.94,1.39038869]
[1729118112510,7.0824878,155.01,154.94,20.1]
[1729118119327,5.5824878,155.01,154.94,20.1]
[1729118119531,23.776884,155.01,154.9,20.1]
[1729118119831,6.4535,154.96,154.9,11.60668724]
[1729118120232,6.4535,154.96,154.9,11.70668724]
[1729118120537,6.4535,154.96,154.9,11.60668724]
[1729118121050,6.4535,154.96,154.91,20.0]
[1729118123718,6.4529,154.97,154.91,20.1]
[1729118127144,13.0734,154.99,154.93,20.1]
[1729118131845,6.4523,154.99,154.93,20.1]
[1729118132058,13.19188768,155.04,154.98,11.60668724]
[1729118132347,6.4502,155.04,154.99,21.29006119]
[1729118132645,6.4502,155.04,154.99,20.0]
[1729118134523,6.4502,155.04,155.0,1.29003997]
[1729118134948,6.4502,155.04,154.99,21.28997675]
[1729118135539,6.4502,155.04,154.99,20.0]
[1729118137443,6.7397475,155.08,154.93,1.29009881]
[1729118137444,6.4515,155.01,154.93,15.3871]
[1729118137646,6.4515,155.01,154.94,11.60668724]
[1729118137832,6.4522,154.99,154.94,11.60668724]
[1729118138036,6.4522,154.99,154.93,15.1871]
[1729118138239,6.4522,154.99,154.93,15.2871]
[1729118138451,6.4516,155.0,154.93,15.2871]
[1729118139442,6.4521,154.99,154.94,20.0]
[1729118141941,6.4515,155.01,154.94,20.1]
[1729118144839,6.4516,155.0,154.94,20.1]
[1729118147460,6.4509,155.02,154.96,20.0]
[1729118150557,6.4503,155.04,154.97,1.39024113]
[1729118150961,6.4503,155.04,154.97,0.1]
[1729118151372,6.4503,155.04,154.97,20.1]
[1729118154757,6.4503,155.04,154.97,0.1]
[1729118155065,6.4503,155.04,154.97,20.1]
[1729118158338,6.4503,155.04,154.97,31.70668724]
[1729118160167,6.4503,155.04,154.98,1.29009234]
[1729118160370,6.4503,155.04,154.98,0.1]
[1729118161871,23.0887,155.05,154.97,20.0]
[1729118162166,6.4512,155.01,154.96,20.0]
[1729118162348,6.4508,155.02,154.96,20.0]
[1729118165250,23.0887,155.05,154.96,20.0]
[1729118165452,6.4509,155.02,154.96,20.0]
[1729118166162,23.0887,155.05,154.96,20.0]
[1729118166363,6.4512,155.01,154.96,20.0]
[1729118168971,6.4487,155.07,155.01,20.0]
[1729118169178,6.4487,155.07,155.01,21.28990461]
[1729118170977,6.74020357,155.08,154.98,20.0]
[1729118171148,6.4496,155.05,154.98,31.60668724]
[1729118172072,6.4493,155.06,154.98,20.0]
[1729118172271,6.4493,155.06,154.98,31.70668724]
[1729118172474,29.61300357,155.08,154.98,31.60668724]
[1729118172774,6.4496,155.05,154.98,31.60668724]
[1729118174585,23.776884,155.07,154.96,20.0]
[1729118175382,6.74050102,155.06,154.96,20.0]
[1729118175559,6.74050102,155.06,154.96,31.60668724]
[1729118176467,6.4495,155.05,154.99,20.0]
[1729118176874,6.45,155.04,154.99,20.0]
[1729118177176,6.45,155.04,154.97,20.0]
[1729118177962,6.45,155.04,154.96,20.0]
[1729118181462,6.4507,155.03,154.96,20.0]
[1729118186579,6.4499,155.04,154.98,20.0]
[1729118188767,6.74050102,155.06,154.98,20.0]
[1729118188966,6.4505,155.03,154.96,31.60668724]
[1729118190489,6.4505,155.03,154.96,20.0]
[1729118191389,6.4508,155.02,154.96,20.0]
[1729118195870,6.4504,155.03,154.96,20.0]
[1729118196068,6.45,155.04,154.98,20.0]
[1729118200696,6.74050102,155.06,154.98,20.0]
[1729118200900,6.74050102,155.06,155.0,20.0]
[1729118204492,6.74050102,155.06,155.02,20.0]
[1729118205305,13.18970102,155.06,154.99,11.60668724]
[1729118205503,6.74050102,155.06,154.97,20.0]
[1729118205807,6.4504,155.03,154.97,20.0]
[1729118205985,6.45,155.04,154.97,20.0]
[1729118206785,13.18990102,155.06,154.99,20.0]
[1729118206986,6.4495,155.05,154.99,20.0]
[1729118207387,6.4495,155.05,154.98,20.0]
[1729118221296,23.776884,155.07,154.98,20.0]
[1729118221498,23.776884,155.07,154.97,20.0]
[1729118221815,23.776884,155.07,154.97,31.60668724]
[1729118222401,6.4504,155.03,154.97,31.60668724]
[1729118226911,23.776884,155.07,154.97,31.60668724]
[1729118227119,6.4501,155.04,154.97,31.60668724]
[1729118227410,23.776884,155.07,154.97,31.60668724]
[1729118227717,6.4492,155.06,155.0,20.0]
[1729118228405,6.4492,155.06,154.97,20.0]
[1729118228609,6.4492,155.06,154.99,20.0]
[1729118230111,6.4497,155.05,154.99,20.0]
[1729118233112,6.4497,155.05,154.97,20.1]
[1729118234725,6.4497,155.05,154.98,1.2900682]
[1729118235021,6.4497,155.05,154.99,20.0]
[1729118235219,6.4492,155.06,154.99,20.0]
[1729118236526,6.45,155.04,154.97,20.0]
[1729118237807,6.45,155.04,154.96,19.28390932]
[1729118238016,6.45,155.04,154.97,20.0]
[1729118241224,6.45,155.04,154.96,19.28390932]
[1729118241603,6.4499,155.05,154.97,20.0]
[1729118244426,6.4494,155.06,154.99,20.0]
[1729118249433,22.8728,155.08,154.99,20.0]
[1729118249612,6.4488,155.07,154.99,20.0]
[1729118250011,6.4491,155.06,154.99,20.0]
[1729118250626,6.4487,155.07,155.0,12.89663191]
[1729118250930,6.4487,155.07,155.01,20.0]
[1729118261934,6.4487,155.07,155.02,11.60668724]
[1729118262235,6.4487,155.07,155.03,20.0]
[1729118262737,6.4487,155.07,155.02,20.0]
[1729118278939,6.73946299,155.09,155.02,31.60668724]
[1729118279144,6.73946299,155.09,155.02,31.70668724]
[1729118279346,6.73946299,155.09,155.04,20.0]
[1729118279752,6.4484,155.08,155.03,20.0]
[1729118280657,6.4499,155.04,154.98,17.65808724]
[1729118281049,6.73946299,155.09,154.98,17.65808724]
[1729118281252,6.4495,155.05,154.98,17.65808724]
[1729118281754,6.4495,155.05,154.99,20.0]
[1729118283971,6.73946299,155.09,155.02,11.60668724]
[1729118284255,6.4475,155.1,155.03,20.0]
[1729118284558,6.4474,155.1,155.03,20.0]
[1729118284951,6.4479,155.09,155.03,20.0]
[1729118286070,6.0257,155.11,155.03,20.0]
[1729118287064,6.4479,155.09,155.03,20.0]
[1729118288753,6.4479,155.09,155.03,31.60668724]
[1729118293566,15.9269,155.07,154.96,16.0224]
[1729118293751,6.451,155.02,154.97,11.60668724]
[1729118294367,6.4504,155.03,154.97,11.60668724]
[1729118294872,15.9269,155.07,154.97,11.60668724]
[1729118295078,15.9269,155.07,155.01,11.60668724]
[1729118295663,6.4492,155.06,155.01,11.60668724]
[1729118296865,6.4496,155.05,154.98,20.0]
[1729118297052,6.4496,155.05,154.98,31.60668724]
[1729118300058,6.4496,155.05,155.0,11.60668724]
[1729118303758,6.4491,155.06,155.0,11.60668724]
[1729118310471,16.98617685,155.06,155.0,11.60668724]
[1729118310677,6.4491,155.06,155.0,11.60668724]
[1729118312380,22.3756,155.07,155.0,11.60668724]
[1729118312578,6.4491,155.06,155.0,11.60668724]
[1729118317071,22.3758,155.07,155.0,11.60668724]
[1729118317392,15.9269,155.07,155.0,11.60668724]
[1729118317690,22.3759,155.07,155.0,11.60668724]
[1729118317989,6.4492,155.06,155.0,11.60668724]
[1729118321270,6.4496,155.05,154.99,11.60668724]
[1729118321591,6.4496,155.05,155.0,20.0]
[1729118321789,15.9269,155.07,155.0,20.0]
[1729118322096,6.4491,155.06,155.0,20.0]
[1729118325369,6.4491,155.06,155.0,31.60668724]
[1729118326291,6.4491,155.06,154.98,20.0]
[1729118326490,6.4496,155.05,154.98,20.0]
[1729118326676,6.4496,155.05,154.99,11.60668724]
[1729118326992,6.4496,155.05,155.0,20.0]
[1729118327376,6.4492,155.06,155.0,20.0]
[1729118332172,15.9269,155.07,154.96,0.1]
[1729118332389,6.449,155.07,155.02,11.60668724]
[1729118332594,6.4494,155.06,154.99,20.0]
[1729118332788,22.0421,155.06,154.99,20.0]
[1729118333786,6.4502,155.04,154.98,11.60668724]
[1729118335783,6.4511,155.02,154.95,20.0]
[1729118336085,6.4504,155.03,154.97,19.85734665]
[1729118337897,6.4504,155.03,154.96,11.60668724]
[1729118338304,6.4504,155.03,154.97,20.0]
[1729118339201,6.451,155.02,154.95,20.0]
[1729118339406,6.451,155.02,154.96,11.60668724]
[1729118339608,6.451,155.02,154.97,20.0]
[1729118339810,22.0421,155.06,154.98,11.60668724]
[1729118339997,6.4499,155.05,154.98,11.60668724]
[1729118340180,22.0421,155.06,154.95,31.60668724]
[1729118340383,6.4508,155.02,154.95,31.60668724]
[1729118340679,6.4508,155.02,154.97,11.60668724]
[1729118342592,6.4512,155.01,154.92,20.0]
[1729118342790,6.4512,155.01,154.93,11.60668724]
[1729118343613,22.0421,155.06,154.95,23.776884]
[1729118343907,10.32171979,155.05,154.98,11.60668724]
[1729118344107,22.0421,155.06,154.98,11.60668724]
[1729118344683,6.45,155.04,154.98,11.60668724]
[1729118345114,10.37570338,155.03,154.98,11.60668724]
[1729118345283,6.45,155.04,154.98,11.60668724]
[1729118348629,10.73127796,155.03,154.98,11.60668724]
[1729118348813,6.45,155.04,154.98,11.60668724]
[1729118349809,22.0421,155.06,155.0,11.60668724]
[1729118350118,28.4912,155.06,155.0,11.60668724]
[1729118351628,6.4491,155.06,155.0,11.60668724]
[1729118352722,6.4491,155.06,154.98,15.0211]
[1729118352920,6.4491,155.06,154.99,11.60668724]
[1729118354228,6.4491,155.06,154.98,15.0211]
[1729118354525,16.1199,155.09,154.98,15.0211]
[1729118354718,6.4505,155.03,154.98,15.0211]
[1729118354920,41.5847,155.07,154.95,23.776884]
[1729118355111,41.5847,155.07,154.98,11.60668724]
[1729118356510,6.45,155.04,154.98,11.60668724]
[1729118364714,41.5847,155.07,154.98,11.60668724]
[1729118364913,6.4504,155.03,154.98,11.60668724]
[1729118370244,6.4493,155.06,154.98,11.60668724]
[1729118370446,6.4501,155.04,154.98,11.60668724]
[1729118371845,6.4501,155.04,154.96,20.0]
[1729118372140,6.4501,155.04,154.97,11.60668724]
[1729118373639,6.4503,155.03,154.97,11.60668724]
[1729118373947,6.4503,155.03,154.97,20.0]
[1729118383656,6.4507,155.02,154.97,20.0]
[1729118384551,6.4504,155.03,154.97,20.0]
[1729118386938,23.776884,155.06,154.94,20.0]
[1729118386939,16.1244,155.05,154.94,20.0]
[1729118387157,16.1244,155.05,154.97,20.0]
[1729118387335,6.4509,155.02,154.97,20.0]
[1729118387539,6.4504,155.03,154.97,20.0]
[1729118389554,23.776884,155.06,154.97,20.0]
[1729118389745,6.45,155.04,154.97,20.0]
[1729118390256,28.0336,155.07,155.0,11.60668724]
[1729118390431,12.8427,155.07,155.0,11.60668724]
[1729118390632,6.4491,155.06,155.0,11.60668724]
[1729118390847,6.4485,155.08,155.02,11.60668724]
[1729118392334,6.4487,155.07,155.0,11.60668724]
[1729118401460,6.4491,155.06,155.0,11.60668724]
[1729118418348,6.73892589,155.11,155.06,20.0]
[1729118418661,21.5137,155.15,155.08,11.60668724]
[1729118419150,6.4458,155.14,155.08,11.60668724]
[1729118419347,27.9591,155.15,155.08,11.60668724]
[1729118422775,6.4457,155.14,155.08,11.60668724]
[1729118424081,6.4465,155.13,155.06,20.0]
[1729118424373,6.4465,155.13,155.07,11.60668724]
[1729118427560,21.5137,155.15,155.07,11.60668724]
[1729118427767,6.4463,155.13,155.07,11.60668724]
[1729118428453,6.4463,155.13,155.04,20.0]
[1729118428454,0.6312878,155.16,155.09,11.60668724]
[1729118429455,7.0762878,155.16,155.09,11.60668724]
[1729118429874,0.6312878,155.16,155.09,11.60668724]
[1729118430169,0.6312878,155.16,155.11,11.60668724]
[1729118430974,7.0762878,155.16,155.11,11.60668724]
[1729118432667,6.4456,155.15,155.09,20.0]
[1729118432858,6.4458,155.14,155.09,11.60668724]
[1729118433179,6.4462,155.13,155.08,16.5298]
[1729118434762,0.6312878,155.16,155.08,16.5298]
[1729118434971,6.4459,155.14,155.08,16.5298]
[1729118435778,6.4462,155.13,155.07,11.60668724]
[1729118436683,6.4462,155.13,155.04,16.5298]
[1729118436684,6.4471,155.11,155.05,20.0]
[1729118436866,6.4471,155.11,155.05,11.60668724]
[1729118437060,23.776884,155.15,155.05,11.60668724]
[1729118437261,6.4462,155.13,155.07,11.60668724]
[1729118437581,23.776884,155.15,155.07,11.60668724]
[1729118437786,6.4466,155.12,155.07,11.60668724]
[1729118440588,23.776884,155.15,155.07,11.60668724]
[1729118440759,6.4462,155.13,155.07,11.60668724]
[1729118441780,6.4467,155.12,155.07,11.60668724]
[1729118444182,6.4471,155.11,155.05,20.0]
[1729118444407,6.4467,155.12,155.05,20.0]
[1729118445269,21.3955,155.13,155.05,20.0]
[1729118445473,6.4475,155.1,155.02,20.0]
[1729118445677,6.4475,155.1,155.05,20.0]
[1729118446195,21.3955,155.13,155.05,20.0]
[1729118446489,6.4471,155.11,155.05,20.0]
[1729118447881,6.4466,155.12,155.05,35.7152]
[1729118448194,6.4464,155.13,155.07,20.0]
[1729118449074,16.7446878,155.16,155.07,20.0]
[1729118449277,0.6312878,155.16,155.08,11.60668724]
[1729118449595,6.4462,155.13,155.08,11.60668724]
[1729118453674,6.4462,155.13,155.06,31.60668724]
[1729118455869,6.4466,155.12,155.06,31.60668724]
[1729118456088,6.4475,155.1,155.05,15.7152]
[1729118462685,6.4475,155.1,155.05,27.32188724]
[1729118474117,6.4475,155.1,155.05,15.7152]
[1729118474320,16.1144,155.14,155.0,22.4561]
[1729118474321,23.776884,155.11,155.0,22.4561]
[1729118474620,6.4483,155.08,155.0,34.06278724]
[1729118474915,23.776884,155.11,155.0,15.9516]
[1729118474916,6.4493,155.06,155.0,15.9516]
[1729118485207,6.4488,155.07,155.0,15.9516]
[1729118485503,6.4488,155.07,155.01,11.60668724]
[1729118488706,6.73272485,155.11,155.04,11.60668724]
[1729118489028,28.0475,155.12,155.04,11.60668724]
[1729118489200,6.447,155.11,155.04,11.60668724]
[1729118496014,6.4459,155.14,155.08,11.60668724]
[1729118496207,7.36460139,155.16,155.1,11.60668724]
[1729118496405,6.4461,155.14,155.07,20.0]
[1729118500022,6.4463,155.13,155.07,20.0]
[1729118501439,20.0,155.14,155.02,6.1581]
[1729118501642,23.776884,155.13,155.02,17.76478724]
[1729118501814,6.447,155.11,155.02,17.76478724]
[1729118502337,6.4475,155.1,155.02,17.76478724]
[1729118502728,6.4475,155.1,155.03,20.0]
[1729118503737,6.4475,155.1,155.02,17.76478724]
[1729118504322,6.4483,155.08,155.01,15.1995]
[1729118505541,6.4483,155.08,155.02,20.0]
[1729118515942,6.4483,155.08,155.02,31.60668724]
[1729118518732,20.0,155.12,155.02,31.60668724]
[1729118520425,6.4479,155.09,155.02,31.60668724]
[1729118522137,6.4486,155.08,155.02,20.0]
[1729118522338,22.1969,155.1,154.98,6.3238]
[1729118522544,6.4494,155.06,154.99,20.0]
[1729118522748,6.4494,155.06,155.01,20.0]
[1729118533045,6.4494,155.06,154.99,20.0]
[1729118541449,6.4494,155.06,155.0,11.60668724]
[1729118550561,6.4504,155.03,154.99,20.0]
[1729118550760,16.1222,155.07,154.94,6.5547]
[1729118550944,6.4519,155.0,154.93,15.4628]
[1729118552068,6.4519,155.0,154.94,20.0]
[1729118553140,6.4512,155.01,154.94,31.60668724]
[1729118562659,20.0,155.04,154.94,31.60668724]
[1729118562848,6.4519,155.0,154.94,31.60668724]
[1729118563051,6.4519,155.0,154.94,20.0]
[1729118565775,16.6568,155.02,154.9,6.5547]
[1729118566070,6.4529,154.97,154.9,6.5547]
[1729118566658,23.776884,155.01,154.91,11.60668724]
[1729118566859,6.4523,154.99,154.91,11.60668724]
[1729118567262,6.4523,154.99,154.92,20.0]
[1729118576169,6.4521,154.99,154.91,20.0]
[1729118581956,16.6568,155.02,154.92,11.60668724]
[1729118582160,6.4516,155.0,154.92,11.60668724]
[1729118589689,6.4516,155.0,154.91,31.60668724]
[1729118591391,6.4523,154.99,154.91,20.0]
[1729118593896,6.4523,154.99,154.92,11.60668724]
[1729118595994,6.4516,155.0,154.92,11.60668724]
[1729118596365,6.4526,154.98,154.9,18.16138724]
[1729118596675,6.4526,154.98,154.91,20.0]
[1729118596870,6.4529,154.97,154.91,20.0]
[1729118597186,6.4525,154.98,154.91,20.0]
[1729118606869,43.776884,155.01,154.89,20.0]
[1729118607090,6.4531,154.97,154.91,20.0]
[1729118610783,6.4531,154.97,154.89,20.0]
[1729118612088,6.4531,154.97,154.9,11.60668724]
[1729118619206,23.776884,154.98,154.89,20.0]
[1729118619410,6.4533,154.96,154.89,31.60668724]
[1729118621216,6.4529,154.97,154.89,31.60668724]
[1729118621507,6.0345,154.99,154.91,11.60668724]
[1729118621690,12.4866,154.99,154.91,11.60668724]
[1729118622506,6.4525,154.98,154.91,11.60668724]
[1729118630990,6.4525,154.98,154.89,31.60668724]
[1729118633326,6.4529,154.97,154.89,20.0]
[1729118633631,16.3435,154.97,154.89,20.0]
[1729118634321,23.776884,154.96,154.85,19.41096815]
[1729118634510,23.776884,154.96,154.86,20.0]
[1729118634511,6.4548,154.93,154.86,20.0]
[1729118634709,6.4548,154.93,154.85,11.60668724]
[1729118635920,6.4548,154.93,154.86,20.0]
[1729118639410,6.4548,154.93,154.84,15.8937]
[1729118639620,6.4548,154.93,154.85,20.0]
[1729118646918,6.2955,154.94,154.85,20.0]
[1729118647117,6.4555,154.91,154.85,20.0]
[1729118648411,6.2955,154.94,154.85,20.0]
[1729118648617,23.776884,154.93,154.85,20.0]
[1729118649438,6.4553,154.91,154.85,20.0]
[1729118656222,6.4553,154.92,154.85,20.0]
[1729118657439,6.2955,154.94,154.85,20.0]
[1729118657943,12.7498,154.94,154.85,20.0]
[1729118660024,17.44473042,154.93,154.85,20.0]
[1729118660337,6.4545,154.93,154.85,20.0]
[1729118666267,10.56100863,154.92,154.85,20.0]
[1729118666569,6.4545,154.93,154.85,20.0]
[1729118667757,16.94200062,154.93,154.85,20.0]
[1729118667929,6.4545,154.93,154.85,20.0]
[1729118670231,10.81689185,154.92,154.85,20.0]
[1729118670442,6.4545,154.93,154.85,20.0]
[1729118670649,10.88615593,154.92,154.85,20.0]
[1729118670852,6.4545,154.93,154.85,20.0]
[1729118671864,10.27029785,154.92,154.85,20.0]
[1729118672040,6.4545,154.93,154.85,31.60668724]
[1729118674058,10.61734869,154.92,154.85,31.60668724]
[1729118674349,6.4545,154.93,154.85,31.60668724]
[1729118674558,6.4539,154.95,154.88,31.60668724]
[1729118674854,6.4535,154.96,154.89,11.60668724]
[1729118675056,10.34486456,154.95,154.89,11.60668724]
[1729118675257,6.4535,154.96,154.89,11.60668724]
[1729118675859,16.6566294,154.96,154.89,11.60668724]
[1729118676054,6.4535,154.96,154.89,11.60668724]
[1729118676553,16.68456088,154.96,154.89,11.60668724]
[1729118676757,6.4535,154.96,154.89,11.60668724]
[1729118680865,6.4535,154.96,154.88,15.7484]
[1729118680866,6.4535,154.96,154.9,11.60668724]
[1729118682446,10.42682422,154.95,154.9,11.60668724]
[1729118682659,6.4535,154.96,154.9,11.60668724]
[1729118683559,6.4529,154.97,154.91,20.0]
[1729118684651,6.4529,154.97,154.89,20.0]
[1729118684854,6.4529,154.97,154.91,20.0]
[1729118703866,6.4529,154.97,154.88,22.1301]
[1729118703867,6.4542,154.94,154.88,15.7484]
[1729118704681,6.4538,154.95,154.88,15.7484]
[1729118705079,6.4538,154.95,154.88,27.35508724]
[1729118705280,6.4538,154.95,154.89,11.60668724]
[1729118706884,21.6585,154.97,154.89,11.60668724]
[1729118707064,6.453,154.97,154.89,11.60668724]
[1729118710283,6.453,154.97,154.9,20.0]
[1729118713066,12.6609,154.98,154.91,20.0]
[1729118713278,6.4524,154.98,154.91,20.0]
[1729118714075,6.4524,154.98,154.92,11.60668724]
[1729118718274,6.4524,154.98,154.91,11.60668724]
[1729118723390,43.776884,154.99,154.88,15.7484]
[1729118723594,39.239684,154.97,154.85,6.1427]
[1729118723794,39.239684,154.97,154.86,11.60668724]
[1729118723975,6.4533,154.96,154.88,11.60668724]
[1729118724173,15.4628,154.97,154.9,11.60668724]
[1729118724501,12.9713,154.98,154.92,11.60668724]
[1729118733304,10.25538934,154.97,154.92,11.60668724]
[1729118733491,12.9713,154.98,154.92,11.60668724]
[1729118738601,6.4527,154.98,154.92,11.60668724]
[1729118746400,6.4527,154.98,154.9,20.0]
[1729118746614,6.4527,154.98,154.9,31.60668724]
[1729118755917,32.1599,155.01,154.9,31.60668724]
[1729118755918,6.4528,154.97,154.9,31.60668724]
[1729118760193,16.0313,155.01,154.92,11.60668724]
[1729118760397,6.4518,155.0,154.94,11.60668724]
[1729118765807,6.4512,155.01,154.94,11.60668724]
[1729118766008,6.3263,155.02,154.94,11.60668724]
[1729118766009,6.4516,155.0,154.94,11.60668724]
[1729118788145,6.4511,155.02,154.96,11.60668724]
[1729118788316,6.4496,155.05,154.97,16.1023]
[1729118788631,6.4512,155.01,154.96,20.0]
[1729118788833,6.4512,155.01,154.95,31.60668724]
[1729118789430,55.55369807,155.06,154.95,31.60668724]
[1729118789642,6.4509,155.02,154.95,31.60668724]
[1729118790349,59.899984,155.06,154.95,31.60668724]
[1729118790538,59.899984,155.06,154.96,11.60668724]
[1729118790743,6.4508,155.02,154.96,11.60668724]
[1729118791748,6.4503,155.03,154.96,11.60668724]
[1729118792622,59.899984,155.06,154.96,11.60668724]
[1729118792836,6.4508,155.02,154.96,11.60668724]
[1729118793345,6.4504,155.03,154.98,11.60668724]
[1729118793937,6.4502,155.04,154.95,20.0]
[1729118794245,6.4506,155.03,154.97,20.0]
[1729118796030,6.4491,155.06,155.0,11.60668724]
[1729118796347,6.4479,155.09,155.02,11.60668724]
[1729118796550,6.4484,155.08,155.02,11.60668724]
[1729118797253,10.35114489,155.07,155.02,11.60668724]
[1729118797546,6.4483,155.08,155.02,11.60668724]
[1729118797946,15.7525,155.11,155.02,11.60668724]
[1729118797947,30.86997195,155.1,155.02,11.60668724]
[1729118798129,20.0,155.1,155.02,11.60668724]
[1729118798327,6.4481,155.09,155.02,11.60668724]
[1729118799029,20.0,155.1,155.02,11.60668724]
[1729118799237,6.4483,155.08,155.02,11.60668724]
[1729118799943,6.4479,155.09,155.02,11.60668724]
[1729118800257,20.0,155.1,155.02,11.60668724]
[1729118800423,6.4481,155.09,155.02,11.60668724]
[1729118800744,6.4483,155.08,155.02,11.60668724]
[1729118802942,43.776884,155.12,155.03,16.5137]
[1729118803951,6.4481,155.09,155.03,16.5137]
[1729118805457,6.4481,155.09,155.02,11.60668724]
[1729118805625,6.3392,155.11,155.01,20.0]
[1729118805830,6.4483,155.08,155.01,20.0]
[1729118807558,6.4483,155.08,155.02,11.60668724]
[1729118815341,6.4479,155.09,155.02,11.60668724]
[1729118818361,6.4483,155.08,155.02,11.60668724]
[1729118825975,6.4479,155.09,155.02,11.60668724]
[1729118827686,16.72642369,155.09,155.02,11.60668724]
[1729118827878,6.4479,155.09,155.02,11.60668724]
[1729118830383,10.44804427,155.08,155.02,11.60668724]
[1729118830569,6.4479,155.09,155.02,11.60668724]
[1729118833288,6.4479,155.09,155.01,20.0]
[1729118833462,6.4479,155.09,155.02,11.60668724]
[1729118840603,6.4479,155.09,155.01,20.0]
[1729118840888,6.4487,155.07,155.0,20.0]
[1729118841190,16.0507,155.09,155.0,20.0]
[1729118841774,6.4492,155.06,155.0,20.0]
[1729118843291,6.4488,155.07,155.0,20.0]
[1729118847188,6.4494,155.06,155.0,20.0]
[1729118847488,43.776884,155.08,154.96,18.02487903]
[1729118847798,6.439,155.07,154.96,18.04648724]
[1729118847998,6.4504,155.03,154.96,18.04648724]
[1729118848699,6.45,155.04,154.96,18.04648724]
[1729118848878,6.45,155.04,154.97,20.0]
[1729118853078,23.776884,155.05,154.96,20.0]
[1729118853279,6.4518,155.0,154.93,31.60668724]
[1729118853473,6.4518,155.0,154.92,6.3498]
[1729118854786,6.4523,154.99,154.93,20.0]
[1729118857885,6.4517,155.0,154.93,20.0]
[1729118858989,6.5167,155.02,154.93,20.0]
[1729118859195,6.4521,154.99,154.93,20.0]
[1729118873311,6.4513,155.01,154.95,11.60668724]
[1729118876203,15.5098,155.04,154.95,11.60668724]
[1729118876390,6.4506,155.03,154.95,11.60668724]
[1729118876715,6.4508,155.02,154.95,11.60668724]
[1729118876887,31.6349,155.04,154.93,20.0]
[1729118877088,20.0,155.03,154.93,20.0]
[1729118877314,6.4518,155.0,154.93,20.0]
[1729118877516,6.4523,154.99,154.93,20.0]
[1729118877688,22.2248,155.01,154.92,20.0]
[1729118877895,6.453,154.97,154.91,16.6131]
[1729118879487,6.453,154.97,154.9,20.0]
[1729118879689,10.34274906,154.96,154.9,20.0]
[1729118879898,6.453,154.97,154.9,20.0]